[Event "Early-Titled-Tuesday-Blitz-April-23-2024"]
[Site "Chess.com"]
[Date "2024.04.23"]
[Round "5"]
[White "chess_sharparchitect"]
[Black "maracayo"]
[Result "1-0"]
[WhiteElo "2237"]
[BlackElo "2338"]
[TimeControl "180+1"]
[EndTime "8:57:41 PDT"]
[Termination "chess_sharparchitect won on time"]

1. c4 {[%clk 0:03:00.9]} 1... d6 {[%clk 0:02:55.5]} 2. Nc3 {[%clk 0:03:00.6]}
2... Nf6 {[%clk 0:02:54.9]} 3. e4 {[%clk 0:02:59.9]} 3... e5 {[%clk 0:02:54.4]}
4. Nf3 {[%clk 0:02:59.5]} 4... Be7 {[%clk 0:02:54]} 5. h3 {[%clk 0:02:59]} 5...
O-O {[%clk 0:02:53.4]} 6. d4 {[%clk 0:02:59.6]} 6... exd4 {[%clk 0:02:51.1]} 7.
Nxd4 {[%clk 0:03:00.5]} 7... Re8 {[%clk 0:02:50.4]} 8. Be2 {[%clk 0:02:59.6]}
8... c6 {[%clk 0:02:49.2]} 9. O-O {[%clk 0:02:59.5]} 9... Bf8 {[%clk 0:02:48.5]}
10. Bg5 {[%clk 0:02:58.3]} 10... h6 {[%clk 0:02:47.9]} 11. Bh4 {[%clk
0:02:37.2]} 11... Nbd7 {[%clk 0:02:19.4]} 12. f3 {[%clk 0:02:07.4]} 12... Qb6
{[%clk 0:01:43.5]} 13. b3 {[%clk 0:01:36.4]} 13... d5 {[%clk 0:01:38.9]} 14.
cxd5 {[%clk 0:01:25.2]} 14... cxd5 {[%clk 0:01:37.8]} 15. exd5 {[%clk
0:01:11.1]} 15... Qa5 {[%clk 0:01:12.9]} 16. Rc1 {[%clk 0:00:49.1]} 16... a6
{[%clk 0:00:35.3]} 17. Kh1 {[%clk 0:00:33.2]} 17... Nxd5 {[%clk 0:00:31.9]} 18.
Nxd5 {[%clk 0:00:34.1]} 18... Qxd5 {[%clk 0:00:31.4]} 19. Bc4 {[%clk 0:00:34]}
19... Qh5 {[%clk 0:00:30.3]} 20. Bg3 {[%clk 0:00:29.9]} 20... Ne5 {[%clk
0:00:29.7]} 21. Re1 {[%clk 0:00:22.2]} 21... Bxh3 {[%clk 0:00:25.2]} 22. gxh3
{[%clk 0:00:13]} 22... Qxh3+ {[%clk 0:00:23.3]} 23. Bh2 {[%clk 0:00:13.5]} 23...
Rad8 {[%clk 0:00:15.9]} 24. Bf1 {[%clk 0:00:11]} 24... Qh4 {[%clk 0:00:14.3]}
25. Re4 {[%clk 0:00:10.1]} 25... Qf2 {[%clk 0:00:13.2]} 26. Qe2 {[%clk
0:00:09.3]} 26... Qxe2 {[%clk 0:00:11.4]} 27. Nxe2 {[%clk 0:00:09.2]} 27... Nxf3
{[%clk 0:00:10.6]} 28. Bg3 {[%clk 0:00:08.5]} 28... Rxe4 {[%clk 0:00:09.7]} 29.
Nc3 {[%clk 0:00:06.3]} 29... Re3 {[%clk 0:00:08.1]} 30. Bg2 {[%clk 0:00:06.3]}
30... Nd2 {[%clk 0:00:06.5]} 31. Bf2 {[%clk 0:00:05.7]} 31... Re7 {[%clk
0:00:03.2]} 32. Bh4 {[%clk 0:00:04.9]} 32... g5 {[%clk 0:00:02.5]} 33. Bg3
{[%clk 0:00:05.4]} 33... Bg7 {[%clk 0:00:02.2]} 34. Nd5 {[%clk 0:00:05.7]} 34...
Red7 {[%clk 0:00:01.8]} 35. Nb6 {[%clk 0:00:05.5]} 1-0

[Event "Early-Titled-Tuesday-Blitz-April-23-2024"]
[Site "Chess.com"]
[Date "2024.04.23"]
[Round "5"]
[White "Thebigsqueeze"]
[Black "SoCalJuniorChess"]
[Result "1-0"]
[WhiteElo "2314"]
[BlackElo "2137"]
[TimeControl "180+1"]
[EndTime "8:57:41 PDT"]
[Termination "Thebigsqueeze won by resignation"]

1. e4 {[%clk 0:02:59.8]} 1... d5 {[%clk 0:02:59.3]} 2. e5 {[%clk 0:02:48.3]}
2... c5 {[%clk 0:02:55.8]} 3. f4 {[%clk 0:02:46.1]} 3... Nc6 {[%clk 0:02:50.9]}
4. Nf3 {[%clk 0:02:46.4]} 4... Bg4 {[%clk 0:02:44.7]} 5. Be2 {[%clk 0:02:42.4]}
5... Bxf3 {[%clk 0:02:35.6]} 6. Bxf3 {[%clk 0:02:41.8]} 6... Nd4 {[%clk
0:02:36.3]} 7. c3 {[%clk 0:02:36.1]} 7... Nxf3+ {[%clk 0:02:36.1]} 8. Qxf3
{[%clk 0:02:36.6]} 8... e6 {[%clk 0:02:29.5]} 9. Na3 {[%clk 0:02:33.6]} 9... c4
{[%clk 0:02:27.8]} 10. Nc2 {[%clk 0:02:29.5]} 10... Bc5 {[%clk 0:02:26.9]} 11.
d4 {[%clk 0:02:28.2]} 11... cxd3 {[%clk 0:02:26.3]} 12. Qxd3 {[%clk 0:02:28.6]}
12... Qb6 {[%clk 0:02:21.6]} 13. b4 {[%clk 0:02:25.5]} 13... Bf2+ {[%clk
0:02:21.1]} 14. Ke2 {[%clk 0:02:23.2]} 14... Bh4 {[%clk 0:02:19.5]} 15. Be3
{[%clk 0:02:19.4]} 15... Qc7 {[%clk 0:02:18.4]} 16. Nd4 {[%clk 0:02:17.5]} 16...
a6 {[%clk 0:02:17.3]} 17. a4 {[%clk 0:02:10.3]} 17... g6 {[%clk 0:02:17.4]} 18.
b5 {[%clk 0:02:09]} 18... Ne7 {[%clk 0:02:17.6]} 19. bxa6 {[%clk 0:02:04.9]}
19... bxa6 {[%clk 0:02:15.4]} 20. g3 {[%clk 0:02:04.5]} 20... g5 {[%clk
0:02:05.9]} 21. gxh4 {[%clk 0:02:03.3]} 21... gxh4 {[%clk 0:02:06.8]} 22. Rhg1
{[%clk 0:01:51.3]} 22... Ng6 {[%clk 0:01:57.2]} 23. Rab1 {[%clk 0:01:44]} 23...
O-O {[%clk 0:01:54.7]} 24. Nf3 {[%clk 0:01:34.4]} 24... Kh8 {[%clk 0:01:49.7]}
25. Rg4 {[%clk 0:01:19]} 25... Qe7 {[%clk 0:01:45.5]} 26. Bf2 {[%clk 0:01:06.6]}
26... h5 {[%clk 0:01:39.5]} 27. Bxh4 {[%clk 0:01:02.6]} 27... hxg4 {[%clk
0:01:32.3]} 28. Bxe7 {[%clk 0:01:00.9]} 28... gxf3+ {[%clk 0:01:32.8]} 29. Qxf3
{[%clk 0:01:00.9]} 29... Nxe7 {[%clk 0:01:33.7]} 30. Qh5+ {[%clk 0:00:56.8]}
30... Kg7 {[%clk 0:01:31.2]} 31. Qg5+ {[%clk 0:00:57.1]} 31... Ng6 {[%clk
0:01:30.7]} 32. h4 {[%clk 0:00:57.7]} 32... Rh8 {[%clk 0:01:27.7]} 33. h5 {[%clk
0:00:57.4]} 33... Rxh5 {[%clk 0:01:27.9]} 34. Qf6+ {[%clk 0:00:56.5]} 34... Kg8
{[%clk 0:01:27.9]} 35. Rg1 {[%clk 0:00:51.9]} 35... Rf5 {[%clk 0:00:49.2]} 36.
Rxg6+ {[%clk 0:00:46.9]} 36... fxg6 {[%clk 0:00:50.1]} 37. Qxg6+ {[%clk
0:00:45.1]} 37... Kf8 {[%clk 0:00:46.9]} 38. Qxe6 {[%clk 0:00:44.7]} 38... Rf7
{[%clk 0:00:46.6]} 39. f5 {[%clk 0:00:41.6]} 39... Re8 {[%clk 0:00:43.7]} 40.
Qd6+ {[%clk 0:00:41.6]} 40... Kg7 {[%clk 0:00:40.8]} 41. f6+ {[%clk 0:00:41]}
41... Kg6 {[%clk 0:00:41.2]} 42. Kd3 {[%clk 0:00:38.9]} 42... Rh8 {[%clk
0:00:28.2]} 43. Qxd5 {[%clk 0:00:38.5]} 43... Rh3+ {[%clk 0:00:27.4]} 44. Kc4
{[%clk 0:00:38.4]} 44... Rh4+ {[%clk 0:00:27.2]} 45. Kb3 {[%clk 0:00:38.5]}
45... Rh5 {[%clk 0:00:24.9]} 46. Qe4+ {[%clk 0:00:37.5]} 46... Kh6 {[%clk
0:00:25.3]} 47. e6 {[%clk 0:00:36.8]} 47... Rxf6 {[%clk 0:00:24.1]} 48. e7
{[%clk 0:00:36.7]} 48... Rb6+ {[%clk 0:00:24.4]} 49. Kc4 {[%clk 0:00:35.8]}
49... Ra5 {[%clk 0:00:23.4]} 50. Qe3+ {[%clk 0:00:32.8]} 50... Kg7 {[%clk
0:00:22.4]} 51. Qxb6 {[%clk 0:00:33]} 1-0

[Event "Early-Titled-Tuesday-Blitz-April-23-2024"]
[Site "Chess.com"]
[Date "2024.04.23"]
[Round "5"]
[White "Sadykov_Ramil"]
[Black "BashirliSaadat"]
[Result "0-1"]
[WhiteElo "2625"]
[BlackElo "2398"]
[TimeControl "180+1"]
[EndTime "8:57:43 PDT"]
[Termination "BashirliSaadat won on time"]

1. a3 {[%clk 0:02:32.7]} 1... d5 {[%clk 0:02:58.9]} 2. e3 {[%clk 0:02:29.7]}
2... Nf6 {[%clk 0:02:58.8]} 3. Nf3 {[%clk 0:02:28]} 3... c6 {[%clk 0:02:58.3]}
4. b4 {[%clk 0:02:26.6]} 4... Bg4 {[%clk 0:02:58.3]} 5. Bb2 {[%clk 0:02:24.9]}
5... Nbd7 {[%clk 0:02:58.5]} 6. Be2 {[%clk 0:02:23.9]} 6... e6 {[%clk
0:02:58.7]} 7. h3 {[%clk 0:02:22.4]} 7... Bh5 {[%clk 0:02:58.2]} 8. g4 {[%clk
0:02:21.2]} 8... Bg6 {[%clk 0:02:57]} 9. Nh4 {[%clk 0:02:21]} 9... e5 {[%clk
0:02:50.6]} 10. d3 {[%clk 0:02:10.9]} 10... Bd6 {[%clk 0:02:42.4]} 11. Nd2
{[%clk 0:02:05.7]} 11... a5 {[%clk 0:02:37.1]} 12. c3 {[%clk 0:01:49.7]} 12...
axb4 {[%clk 0:02:29]} 13. cxb4 {[%clk 0:01:44.9]} 13... O-O {[%clk 0:02:23.1]}
14. Nxg6 {[%clk 0:01:34]} 14... fxg6 {[%clk 0:02:22.4]} 15. O-O {[%clk
0:01:30.5]} 15... Ne8 {[%clk 0:02:11.8]} 16. Bf3 {[%clk 0:01:19.3]} 16... Qc7
{[%clk 0:02:09.3]} 17. Bg2 {[%clk 0:01:17.1]} 17... Kh8 {[%clk 0:02:06.4]} 18.
Rc1 {[%clk 0:01:16.7]} 18... Nb6 {[%clk 0:02:04]} 19. Nb3 {[%clk 0:01:15.4]}
19... Qe7 {[%clk 0:01:51.9]} 20. Nc5 {[%clk 0:01:12.7]} 20... Bxc5 {[%clk
0:01:51.1]} 21. bxc5 {[%clk 0:01:08]} 21... Na4 {[%clk 0:01:50.5]} 22. Qb3
{[%clk 0:00:55.7]} 22... Nf6 {[%clk 0:01:21.9]} 23. Qb4 {[%clk 0:00:41.5]} 23...
Rfb8 {[%clk 0:01:14.1]} 24. Ba1 {[%clk 0:00:39.3]} 24... Nd7 {[%clk 0:01:10.6]}
25. f4 {[%clk 0:00:20]} 25... exf4 {[%clk 0:01:04.2]} 26. exf4 {[%clk
0:00:16.1]} 26... Qe3+ {[%clk 0:00:53.7]} 27. Kh1 {[%clk 0:00:15.5]} 27... Qxd3
{[%clk 0:00:41.6]} 28. f5 {[%clk 0:00:13.6]} 28... gxf5 {[%clk 0:00:36.7]} 29.
Rxf5 {[%clk 0:00:12.5]} 29... Ndxc5 {[%clk 0:00:20.6]} 30. Rf7 {[%clk
0:00:09.1]} 30... Ne6 {[%clk 0:00:19.6]} 31. Re1 {[%clk 0:00:05.2]} 31... c5
{[%clk 0:00:14.5]} 32. Qb1 {[%clk 0:00:01.6]} 32... Qxb1 {[%clk 0:00:13.9]} 33.
Rxb1 {[%clk 0:00:02.5]} 33... Rf8 {[%clk 0:00:13.2]} 34. Rxf8+ {[%clk
0:00:02.1]} 34... Rxf8 {[%clk 0:00:13.6]} 35. Bxd5 {[%clk 0:00:03]} 35... Nf4
{[%clk 0:00:13.4]} 36. Bxb7 {[%clk 0:00:02.2]} 36... Nxh3 {[%clk 0:00:13.3]} 37.
Bc6 {[%clk 0:00:01.5]} 37... Nf2+ {[%clk 0:00:13.6]} 0-1

[Event "Early-Titled-Tuesday-Blitz-April-23-2024"]
[Site "Chess.com"]
[Date "2024.04.23"]
[Round "5"]
[White "Bilan_Danila"]
[Black "average_trans"]
[Result "1-0"]
[WhiteElo "2554"]
[BlackElo "2233"]
[TimeControl "180+1"]
[EndTime "8:57:44 PDT"]
[Termination "Bilan_Danila won on time"]

1. d4 {[%clk 0:03:00.9]} 1... d5 {[%clk 0:02:55.5]} 2. Nf3 {[%clk 0:03:00.4]}
2... e6 {[%clk 0:02:55.4]} 3. c4 {[%clk 0:03:01.1]} 3... Nf6 {[%clk 0:02:52.8]}
4. Nc3 {[%clk 0:03:00.1]} 4... c6 {[%clk 0:02:53.1]} 5. Bg5 {[%clk 0:02:59.3]}
5... Be7 {[%clk 0:02:52.8]} 6. e3 {[%clk 0:02:58.8]} 6... h6 {[%clk 0:02:52.1]}
7. Bh4 {[%clk 0:02:58.8]} 7... O-O {[%clk 0:02:52.3]} 8. Bd3 {[%clk 0:02:58.5]}
8... Nbd7 {[%clk 0:02:51.8]} 9. O-O {[%clk 0:02:58.4]} 9... b6 {[%clk
0:02:51.7]} 10. cxd5 {[%clk 0:02:55.1]} 10... Nxd5 {[%clk 0:02:45]} 11. Bg3
{[%clk 0:02:46.6]} 11... Bb7 {[%clk 0:02:41.9]} 12. e4 {[%clk 0:02:47]} 12...
N5f6 {[%clk 0:02:28.2]} 13. Qe2 {[%clk 0:02:39.2]} 13... c5 {[%clk 0:02:24.5]}
14. Rad1 {[%clk 0:02:38.4]} 14... cxd4 {[%clk 0:02:04]} 15. Nxd4 {[%clk
0:02:38.3]} 15... Bc5 {[%clk 0:01:59.3]} 16. Ba6 {[%clk 0:02:05.4]} 16... Bxa6
{[%clk 0:01:42.7]} 17. Qxa6 {[%clk 0:02:06.3]} 17... Nh5 {[%clk 0:01:34.5]} 18.
Nc6 {[%clk 0:01:51.5]} 18... Qc8 {[%clk 0:01:22.4]} 19. Qxc8 {[%clk 0:01:47]}
19... Rfxc8 {[%clk 0:01:23.3]} 20. Rxd7 {[%clk 0:01:34.8]} 20... Rxc6 {[%clk
0:01:22.5]} 21. Rfd1 {[%clk 0:01:18.4]} 21... a6 {[%clk 0:00:57.9]} 22. Rb7
{[%clk 0:01:07.3]} 22... Rf8 {[%clk 0:00:37.4]} 23. Be5 {[%clk 0:00:52.4]} 23...
f6 {[%clk 0:00:23.9]} 24. Bb8 {[%clk 0:00:31.7]} 24... Rcc8 {[%clk 0:00:17]} 25.
Ba7 {[%clk 0:00:21.4]} 25... Rc6 {[%clk 0:00:08]} 26. Rdd7 {[%clk 0:00:19.8]}
26... Rfc8 {[%clk 0:00:04.2]} 27. g4 {[%clk 0:00:18.8]} 27... Nf4 {[%clk
0:00:04.5]} 28. Rxg7+ {[%clk 0:00:18.6]} 28... Kh8 {[%clk 0:00:05.1]} 29. Rh7+
{[%clk 0:00:18.7]} 29... Kg8 {[%clk 0:00:05.4]} 30. Rxh6 {[%clk 0:00:17.7]}
30... Bf8 {[%clk 0:00:05.5]} 31. Rxf6 {[%clk 0:00:15.7]} 31... Nh3+ {[%clk
0:00:03.2]} 32. Kg2 {[%clk 0:00:15.7]} 32... Ng5 {[%clk 0:00:03.9]} 33. h4
{[%clk 0:00:16.2]} 33... Bg7 {[%clk 0:00:03.3]} 34. Rg6 {[%clk 0:00:15.7]} 1-0

[Event "Early-Titled-Tuesday-Blitz-April-23-2024"]
[Site "Chess.com"]
[Date "2024.04.23"]
[Round "5"]
[White "RobertoJBM"]
[Black "LikeWater"]
[Result "0-1"]
[WhiteElo "2841"]
[BlackElo "2676"]
[TimeControl "180+1"]
[EndTime "8:57:47 PDT"]
[Termination "LikeWater won on time"]

1. d4 {[%clk 0:03:00.9]} 1... Nf6 {[%clk 0:02:54.6]} 2. Nf3 {[%clk 0:02:58.8]}
2... g6 {[%clk 0:02:54.2]} 3. e3 {[%clk 0:02:58]} 3... Bg7 {[%clk 0:02:54]} 4.
Be2 {[%clk 0:02:58.2]} 4... O-O {[%clk 0:02:53.8]} 5. O-O {[%clk 0:02:59.1]}
5... d6 {[%clk 0:02:52.7]} 6. c4 {[%clk 0:02:58.4]} 6... c5 {[%clk 0:02:52.4]}
7. Nc3 {[%clk 0:02:59.3]} 7... cxd4 {[%clk 0:02:46.1]} 8. Nxd4 {[%clk
0:02:58.9]} 8... Nc6 {[%clk 0:02:44]} 9. b3 {[%clk 0:02:50.7]} 9... d5 {[%clk
0:02:39.2]} 10. Bb2 {[%clk 0:02:41.8]} 10... e5 {[%clk 0:02:16]} 11. Ndb5 {[%clk
0:02:25.1]} 11... d4 {[%clk 0:02:08.2]} 12. Nd5 {[%clk 0:02:22.3]} 12... a6
{[%clk 0:01:26.1]} 13. Nbc7 {[%clk 0:02:19.3]} 13... Rb8 {[%clk 0:01:20.9]} 14.
Nxf6+ {[%clk 0:02:09.7]} 14... Bxf6 {[%clk 0:01:19.9]} 15. Nd5 {[%clk
0:02:10.6]} 15... Bg7 {[%clk 0:01:18.7]} 16. exd4 {[%clk 0:02:06.4]} 16... Nxd4
{[%clk 0:01:13]} 17. Bxd4 {[%clk 0:01:42.3]} 17... exd4 {[%clk 0:01:13.9]} 18.
Bd3 {[%clk 0:01:37.7]} 18... b5 {[%clk 0:01:14.3]} 19. Re1 {[%clk 0:01:34.4]}
19... Bb7 {[%clk 0:01:13.9]} 20. Qf3 {[%clk 0:01:13.7]} 20... Kh8 {[%clk
0:00:58.2]} 21. Rad1 {[%clk 0:01:07.8]} 21... Rc8 {[%clk 0:00:56.3]} 22. h3
{[%clk 0:00:56.8]} 22... Rc5 {[%clk 0:00:55.9]} 23. Qf4 {[%clk 0:00:30.1]} 23...
bxc4 {[%clk 0:00:46.8]} 24. bxc4 {[%clk 0:00:29.7]} 24... Bxd5 {[%clk
0:00:46.7]} 25. cxd5 {[%clk 0:00:30.6]} 25... Qxd5 {[%clk 0:00:47.6]} 26. Re2
{[%clk 0:00:26.3]} 26... Ra5 {[%clk 0:00:45.8]} 27. Qd2 {[%clk 0:00:21.6]} 27...
Rc8 {[%clk 0:00:39.4]} 28. Rde1 {[%clk 0:00:19.3]} 28... Rac5 {[%clk 0:00:24.6]}
29. Qb2 {[%clk 0:00:18]} 29... Kg8 {[%clk 0:00:22.2]} 30. Qb1 {[%clk 0:00:15.4]}
30... a5 {[%clk 0:00:21.3]} 31. a4 {[%clk 0:00:15.1]} 31... Rc3 {[%clk
0:00:21.1]} 32. Bb5 {[%clk 0:00:15.2]} 32... d3 {[%clk 0:00:19.6]} 33. Rd2
{[%clk 0:00:14.2]} 33... Rd8 {[%clk 0:00:19]} 34. Red1 {[%clk 0:00:14.3]} 34...
Rb3 {[%clk 0:00:17.5]} 35. Qc1 {[%clk 0:00:12.8]} 35... Bh6 {[%clk 0:00:17.5]}
36. Rxd3 {[%clk 0:00:10.9]} 36... Rxd3 {[%clk 0:00:17.7]} 37. Rxd3 {[%clk
0:00:09.9]} 37... Bxc1 {[%clk 0:00:17.4]} 38. Rxd5 {[%clk 0:00:09.7]} 38... Rxd5
{[%clk 0:00:18.3]} 0-1

[Event "Early-Titled-Tuesday-Blitz-April-23-2024"]
[Site "Chess.com"]
[Date "2024.04.23"]
[Round "5"]
[White "wqws"]
[Black "agustinv04"]
[Result "1-0"]
[WhiteElo "2714"]
[BlackElo "2484"]
[TimeControl "180+1"]
[EndTime "8:57:47 PDT"]
[Termination "wqws won on time"]

1. e4 {[%clk 0:03:00]} 1... e5 {[%clk 0:03:00]} 2. Nf3 {[%clk 0:02:59.9]} 2...
Nc6 {[%clk 0:03:00.2]} 3. Bb5 {[%clk 0:02:59.9]} 3... a6 {[%clk 0:03:00.5]} 4.
Ba4 {[%clk 0:03:00.3]} 4... Bc5 {[%clk 0:02:57.2]} 5. c3 {[%clk 0:03:00.2]} 5...
b5 {[%clk 0:02:55.2]} 6. Bb3 {[%clk 0:02:58.8]} 6... d6 {[%clk 0:02:54.9]} 7. d4
{[%clk 0:02:58.1]} 7... Bb6 {[%clk 0:02:54.7]} 8. Ng5 {[%clk 0:02:44.6]} 8...
Nh6 {[%clk 0:02:46.2]} 9. Qh5 {[%clk 0:02:43.5]} 9... Qe7 {[%clk 0:02:44.8]} 10.
Bd5 {[%clk 0:02:40.7]} 10... Bd7 {[%clk 0:02:42.2]} 11. a4 {[%clk 0:02:24.9]}
11... Rb8 {[%clk 0:02:28.5]} 12. axb5 {[%clk 0:02:24.1]} 12... axb5 {[%clk
0:02:29.4]} 13. O-O {[%clk 0:02:20.9]} 13... Nd8 {[%clk 0:02:23.3]} 14. h3
{[%clk 0:02:16.7]} 14... c6 {[%clk 0:02:21.5]} 15. Bb3 {[%clk 0:02:15.2]} 15...
exd4 {[%clk 0:02:20.1]} 16. Nf3 {[%clk 0:02:14.5]} 16... Be6 {[%clk 0:02:12.5]}
17. Bxh6 {[%clk 0:02:11.9]} 17... gxh6 {[%clk 0:02:07.6]} 18. Nbd2 {[%clk
0:02:06.9]} 18... dxc3 {[%clk 0:02:06]} 19. bxc3 {[%clk 0:02:06.9]} 19... Rg8
{[%clk 0:01:58.8]} 20. Qxh6 {[%clk 0:02:03.9]} 20... Rg6 {[%clk 0:01:38.7]} 21.
Qxh7 {[%clk 0:02:04]} 21... Qf6 {[%clk 0:01:39.2]} 22. Qh4 {[%clk 0:02:00.3]}
22... Bxb3 {[%clk 0:01:32.5]} 23. Qxf6 {[%clk 0:01:57.9]} 23... Rxf6 {[%clk
0:01:33]} 24. Nxb3 {[%clk 0:01:58.2]} 24... Ne6 {[%clk 0:01:33.6]} 25. Rfd1
{[%clk 0:01:54.5]} 25... Nf4 {[%clk 0:01:29.8]} 26. Nbd4 {[%clk 0:01:47.9]}
26... Rc8 {[%clk 0:00:51.2]} 27. Ra6 {[%clk 0:01:46.6]} 27... Bc5 {[%clk
0:00:51.1]} 28. g3 {[%clk 0:01:38.8]} 28... Nxh3+ {[%clk 0:00:47]} 29. Kg2
{[%clk 0:01:38.5]} 29... Bxd4 {[%clk 0:00:42.1]} 30. cxd4 {[%clk 0:01:38.4]}
30... Rh6 {[%clk 0:00:42.2]} 31. Rh1 {[%clk 0:01:37.2]} 31... Nf4+ {[%clk
0:00:31.2]} 32. gxf4 {[%clk 0:01:36.8]} 32... Rxh1 {[%clk 0:00:32.1]} 33. Kxh1
{[%clk 0:01:37.6]} 33... c5 {[%clk 0:00:31.9]} 34. Rxd6 {[%clk 0:01:35.9]} 34...
c4 {[%clk 0:00:29.8]} 35. Ne1 {[%clk 0:01:34.1]} 35... b4 {[%clk 0:00:29.3]} 36.
Rb6 {[%clk 0:01:28]} 36... b3 {[%clk 0:00:29]} 37. Kg2 {[%clk 0:01:23.7]} 37...
Ra8 {[%clk 0:00:25]} 38. Rb4 {[%clk 0:01:21.7]} 38... Ra1 {[%clk 0:00:24.6]} 39.
Rxc4 {[%clk 0:01:06.8]} 39... b2 {[%clk 0:00:17.7]} 40. Rb4 {[%clk 0:00:58.2]}
40... b1=Q {[%clk 0:00:17.2]} 41. Rxb1 {[%clk 0:00:59.1]} 41... Rxb1 {[%clk
0:00:18.1]} 42. Nf3 {[%clk 0:00:59.6]} 42... Rb2 {[%clk 0:00:16.4]} 43. Kg3
{[%clk 0:00:59.1]} 43... Re2 {[%clk 0:00:15.4]} 44. e5 {[%clk 0:00:57.8]} 44...
Ke7 {[%clk 0:00:13.5]} 45. d5 {[%clk 0:00:57]} 45... Rc2 {[%clk 0:00:12.3]} 46.
d6+ {[%clk 0:00:56.9]} 46... Kd7 {[%clk 0:00:11.9]} 47. Ng5 {[%clk 0:00:57.2]}
47... f6 {[%clk 0:00:10.6]} 48. Ne4 {[%clk 0:00:55.3]} 48... fxe5 {[%clk
0:00:07.1]} 49. fxe5 {[%clk 0:00:55.4]} 49... Re2 {[%clk 0:00:07]} 50. Kf4
{[%clk 0:00:53.4]} 50... Ke6 {[%clk 0:00:06.4]} 51. Ng5+ {[%clk 0:00:51]} 51...
Kd5 {[%clk 0:00:02.7]} 52. d7 {[%clk 0:00:48.2]} 52... Rxf2+ {[%clk 0:00:03]}
53. Nf3 {[%clk 0:00:47.8]} 1-0

[Event "Early-Titled-Tuesday-Blitz-April-23-2024"]
[Site "Chess.com"]
[Date "2024.04.23"]
[Round "5"]
[White "lucasmito"]
[Black "colegiodemadrid"]
[Result "1-0"]
[WhiteElo "2796"]
[BlackElo "2529"]
[TimeControl "180+1"]
[EndTime "8:57:49 PDT"]
[Termination "lucasmito won by resignation"]

1. e4 {[%clk 0:03:00.9]} 1... e6 {[%clk 0:01:38]} 2. d4 {[%clk 0:02:59.4]} 2...
d5 {[%clk 0:01:37.6]} 3. Nc3 {[%clk 0:03:00.3]} 3... Nf6 {[%clk 0:01:37]} 4. Bg5
{[%clk 0:02:59.6]} 4... h6 {[%clk 0:01:37.4]} 5. Bxf6 {[%clk 0:02:59]} 5... Qxf6
{[%clk 0:01:38.3]} 6. exd5 {[%clk 0:02:59.5]} 6... Bb4 {[%clk 0:01:38.7]} 7.
dxe6 {[%clk 0:02:58.9]} 7... Bxe6 {[%clk 0:01:39.6]} 8. Nf3 {[%clk 0:02:58.1]}
8... O-O {[%clk 0:01:38]} 9. Bd3 {[%clk 0:02:48.6]} 9... c5 {[%clk 0:01:38.4]}
10. O-O {[%clk 0:02:46.3]} 10... Bxc3 {[%clk 0:01:38.6]} 11. bxc3 {[%clk
0:02:45.2]} 11... Nc6 {[%clk 0:01:39.5]} 12. Be4 {[%clk 0:02:36]} 12... Rfd8
{[%clk 0:01:35]} 13. Bxc6 {[%clk 0:01:53.9]} 13... bxc6 {[%clk 0:01:33.3]} 14.
Re1 {[%clk 0:01:53.4]} 14... Bd5 {[%clk 0:01:33]} 15. Ne5 {[%clk 0:01:51.5]}
15... cxd4 {[%clk 0:01:31.8]} 16. cxd4 {[%clk 0:01:52.4]} 16... c5 {[%clk
0:01:32.3]} 17. c4 {[%clk 0:01:46.8]} 17... Be6 {[%clk 0:01:05.6]} 18. d5 {[%clk
0:01:43.7]} 18... Bf5 {[%clk 0:01:05.9]} 19. Nc6 {[%clk 0:01:39.6]} 19... Rd7
{[%clk 0:01:03.6]} 20. Qf3 {[%clk 0:01:32.9]} 20... Kh8 {[%clk 0:00:53.6]} 21.
Re5 {[%clk 0:01:14.5]} 21... g6 {[%clk 0:00:38.6]} 22. Rae1 {[%clk 0:01:01.3]}
22... Rd6 {[%clk 0:00:36.5]} 23. h3 {[%clk 0:00:58.6]} 23... Kg7 {[%clk
0:00:35.5]} 24. Re7 {[%clk 0:00:56.1]} 24... Bd7 {[%clk 0:00:32.5]} 25. Qxf6+
{[%clk 0:00:27.1]} 25... Kxf6 {[%clk 0:00:33.4]} 26. Na5 {[%clk 0:00:18.2]}
26... Bf5 {[%clk 0:00:33.6]} 27. Nb7 {[%clk 0:00:17.3]} 27... Ra6 {[%clk
0:00:30]} 28. g4 {[%clk 0:00:17.4]} 28... Bd3 {[%clk 0:00:26]} 29. Nxc5 {[%clk
0:00:17.9]} 29... Bxc4 {[%clk 0:00:24.8]} 30. Nxa6 {[%clk 0:00:18.2]} 30... Bxa6
{[%clk 0:00:25.7]} 31. Rd7 {[%clk 0:00:16.9]} 31... Bb5 {[%clk 0:00:24.2]} 32.
Rd6+ {[%clk 0:00:16.6]} 32... Kg7 {[%clk 0:00:24.5]} 33. Re7 {[%clk 0:00:17]}
33... a6 {[%clk 0:00:23.4]} 34. h4 {[%clk 0:00:16.1]} 34... Rc8 {[%clk
0:00:23.8]} 35. g5 {[%clk 0:00:15.9]} 35... hxg5 {[%clk 0:00:24.7]} 36. hxg5
{[%clk 0:00:16.8]} 36... Rc4 {[%clk 0:00:25]} 37. Rf6 {[%clk 0:00:15.7]} 37...
Rg4+ {[%clk 0:00:25.4]} 38. Kh2 {[%clk 0:00:16.3]} 38... Rxg5 {[%clk 0:00:19.1]}
39. Rfxf7+ {[%clk 0:00:16.7]} 39... Kg8 {[%clk 0:00:19.7]} 40. Rg7+ {[%clk
0:00:16.6]} 40... Kf8 {[%clk 0:00:20.1]} 41. Ref7+ {[%clk 0:00:16.4]} 41... Ke8
{[%clk 0:00:19.9]} 42. d6 {[%clk 0:00:16.8]} 42... Rh5+ {[%clk 0:00:18.7]} 43.
Kg3 {[%clk 0:00:17.5]} 43... Rg5+ {[%clk 0:00:19.3]} 44. Kf4 {[%clk 0:00:17.8]}
44... Rg2 {[%clk 0:00:19.4]} 45. Re7+ {[%clk 0:00:18.3]} 45... Kf8 {[%clk
0:00:19.4]} 46. Ke3 {[%clk 0:00:18.3]} 46... Bc4 {[%clk 0:00:16.9]} 47. d7
{[%clk 0:00:16.3]} 1-0